bitfinex-derivatives/quotes_SOLF0:USTF0_20241005
["timestamp","ask_amount","ask_price","bid_price","bid_amount"]
[1728117232715,8.5,144.76,144.7,13.34]
[1728117232921,11.9539,144.76,144.73,3.4544]
[1728117233822,12.07862,144.77,144.74,3.4542]
[1728117237125,12.07862,144.77,144.73,3.4543]
[1728117238821,3.4538,144.76,144.73,3.4543]
[1728117239120,0.12502,144.77,144.75,8.5]
[1728117239317,0.12502,144.77,144.76,3.4538]
[1728117239634,0.12502,144.77,144.76,8.2938]
[1728117241429,0.12502,144.77,144.76,4.84]
[1728117242227,0.12502,144.77,144.76,8.2938]
[1728117246326,0.12502,144.77,144.76,16.7938]
[1728117250328,0.12502,144.77,144.76,11.9538]
[1728117250636,0.12502,144.77,144.76,16.8338]
[1728117255131,8.5,144.82,144.76,13.38]
[1728117255326,8.5,144.82,144.78,8.5]
[1728117255531,8.5,144.82,144.79,4.88]
[1728117256440,8.5,144.82,144.79,8.3329]
[1728117258742,0.12502,144.83,144.79,4.88]
[1728117258943,0.12502,144.83,144.79,13.38]
[1728117259338,0.12502,144.83,144.81,3.4525]
[1728117260341,0.12502,144.83,144.8,3.4526]
[1728117260640,0.12502,144.83,144.79,13.38]
[1728117261437,0.12502,144.83,144.82,3.4523]
[1728117261730,0.12502,144.83,144.82,8.3323]
[1728117274753,12.07722,144.83,144.76,3.4536]
[1728117274943,12.07722,144.83,144.78,8.5]
[1728117275455,8.62502,144.83,144.8,3.4527]
[1728117275640,8.62502,144.83,144.81,4.82]
[1728117275951,8.62502,144.83,144.81,8.2726]
[1728117276251,8.62502,144.83,144.81,4.82]
[1728117276645,12.07722,144.83,144.81,4.82]
[1728117277741,8.62502,144.83,144.81,4.82]
[1728117278349,0.12502,144.83,144.81,8.2726]
[1728117278645,0.12502,144.83,144.81,4.82]
[1728117278849,0.12502,144.83,144.82,3.4523]
[1728117279752,0.12502,144.83,144.82,8.2723]
[1728117281946,0.12502,144.83,144.82,4.82]
[1728117285356,12.07732,144.83,144.81,4.82]
[1728117287263,3.4528,144.8,144.77,3.4535]
[1728117287453,3.4528,144.8,144.78,4.82]
[1728117287848,8.5,144.81,144.78,4.82]
[1728117288061,11.9526,144.81,144.78,4.82]
[1728117289059,11.9526,144.81,144.78,8.2733]
[1728117295269,8.5,144.81,144.79,3.453]
[1728117295656,8.5,144.81,144.78,4.82]
[1728117297157,11.9526,144.81,144.78,8.2732]
[1728117302763,11.9526,144.81,144.78,4.82]
[1728117302961,3.4531,144.79,144.77,4.82]
[1728117303363,8.5,144.8,144.77,4.82]
[1728117303568,11.9529,144.8,144.77,4.82]
[1728117305071,11.9529,144.8,144.77,8.2735]
[1728117305471,11.9529,144.8,144.77,3.4535]
[1728117305775,11.9529,144.8,144.77,8.2735]
[1728117308369,8.5,144.78,144.74,95.51534692]
[1728117308573,8.5,144.78,144.75,4.82]
[1728117309075,11.9534,144.78,144.75,8.274]
[1728117309884,8.5,144.76,144.74,100.33534692]
[1728117310094,8.5,144.75,144.74,4.82]
[1728117310299,8.5,144.75,144.72,4.82]
[1728117310792,8.5,144.75,144.72,8.2746]
[1728117310978,8.5,144.75,144.72,3.4546]
[1728117311179,8.5,144.75,144.72,8.2746]
[1728117312492,3.4535,144.78,144.72,13.32]
[1728117312695,8.5,144.77,144.72,13.32]
[1728117313585,8.5,144.76,144.74,3.4542]
[1728117313791,3.4401547,144.78,144.72,4.82]
[1728117313989,8.5,144.76,144.72,4.82]
[1728117314899,8.5,144.75,144.72,4.82]
[1728117315397,8.5,144.75,144.72,8.2745]
[1728117316999,11.954,144.75,144.72,8.2745]
[1728117319902,11.954,144.75,144.72,4.82]
[1728117320091,8.5,144.74,144.71,0.12502]
[1728117320291,4.82,144.78,144.71,0.12502]
[1728117320292,11.9547,144.73,144.71,0.12502]
[1728117320601,8.5,144.72,144.71,0.12502]
[1728117321203,11.9547,144.72,144.71,0.12502]
[1728117323297,3.4545,144.73,144.71,0.12502]
[1728117323497,8.5,144.72,144.71,0.12502]
[1728117329523,8.5,144.73,144.71,0.12502]
[1728117329817,2.7069,144.75,144.71,0.12502]
[1728117329818,9.8252,144.75,144.71,0.12502]
[1728117330000,1.4099,144.77,144.71,0.12502]
[1728117330203,13.3635,144.77,144.72,8.5]
[1728117330604,16.85893655,144.77,144.72,8.5]
[1728117331201,16.85893655,144.77,144.74,3.4542]
[1728117331612,8.5,144.77,144.72,8.5]
[1728117332017,8.5,144.77,144.73,4.82]
[1728117332220,8.5,144.77,144.75,3.4538]
[1728117332409,8.5,144.78,144.73,13.32]
[1728117333509,8.5,144.78,144.76,3.4536]
[1728117334207,8.5,144.77,144.74,3.4541]
[1728117334613,8.5,144.77,144.73,4.82]
[1728117334813,8.5,144.77,144.75,3.454]
[1728117335219,8.5,144.77,144.73,4.82]
[1728117335516,8.5,144.77,144.74,3.4542]
[1728117343823,8.5,144.77,144.75,3.454]
[1728117346529,8.5,144.77,144.74,3.4541]
[1728117347322,8.5,144.76,144.74,3.4541]
[1728117347723,8.5,144.76,144.73,8.2745]
[1728117348126,8.5,144.74,144.73,8.2745]
[1728117348326,8.5,144.74,144.73,4.82]
[1728117348526,8.2813251,144.8,144.73,4.82]
[1728117348727,8.5,144.77,144.73,4.82]
[1728117349026,8.5,144.77,144.76,3.4538]
[1728117349633,8.5,144.77,144.75,3.454]
[1728117350130,8.5,144.77,144.73,4.82]
[1728117350131,3.43540868,144.79,144.73,4.82]
[1728117350527,8.5,144.78,144.73,4.82]
[1728117350727,8.5,144.78,144.75,3.4539]
[1728117355734,11.9533,144.78,144.75,3.4539]
[1728117357130,8.5,144.76,144.73,4.82]
[1728117357436,8.5,144.76,144.73,8.2744]
[1728117359054,8.5,144.74,144.71,0.12502]
[1728117359348,8.5,144.72,144.71,0.12502]
[1728117359951,11.9547,144.72,144.71,0.12502]
[1728117362156,3.4554,144.7,144.66,8.2761]
[1728117362450,3.4554,144.7,144.66,4.82]
[1728117362451,15.48779057,144.7,144.66,4.82]
[1728117362652,11.9554,144.7,144.66,4.82]
[1728117363146,15.43415647,144.7,144.66,4.82]
[1728117364254,15.43415647,144.7,144.67,3.4559]
[1728117364951,8.5,144.68,144.66,3.4561]
[1728117365759,8.5,144.67,144.66,3.4561]
[1728117365950,11.956,144.67,144.65,0.12502]
[1728117366150,8.5,144.66,144.65,0.12502]
[1728117366456,8.5,144.66,144.59,0.12502]
[1728117366754,8.5,144.6,144.59,0.12502]
[1728117370049,11.9576,144.6,144.59,0.12502]
[1728117381666,4.8391,144.63,144.59,3.58272]
[1728117381867,8.5,144.6,144.59,0.12502]
[1728117383870,8.5,144.6,144.59,3.58282]
[1728117387075,1.4097,144.67,144.59,0.12502]
[1728117387269,8.5,144.62,144.59,0.12502]
[1728117387665,3.4562,144.66,144.59,8.62502]
[1728117387866,8.5,144.64,144.59,8.62502]
[1728117388170,8.5,144.64,144.6,4.84]
[1728117388964,8.5,144.64,144.62,3.457]
[1728117395179,8.5,144.63,144.62,3.457]
[1728117395687,8.5,144.63,144.6,4.84]
[1728117395877,8.5,144.63,144.61,3.4572]
[1728117396278,8.5,144.63,144.6,8.2975]
[1728117396480,8.5,144.61,144.6,8.2975]
[1728117397987,8.5,144.61,144.6,4.84]
[1728117398178,8.5,144.61,144.59,3.58272]
[1728117398380,8.5,144.6,144.59,3.58272]
[1728117405882,8.5,144.6,144.59,0.12502]
[1728117408590,3.4582,144.58,144.54,8.2989]
[1728117408790,8.5,144.55,144.54,8.2989]
[1728117409288,8.5,144.55,144.53,0.12502]
[1728117409491,8.5,144.55,144.53,3.58422]
[1728117409789,4.84,144.59,144.53,3.58422]
[1728117409790,8.5,144.54,144.53,3.58422]
[1728117410397,8.5,144.54,144.5,4.84]
[1728117411288,8.5,144.53,144.52,3.4593]
[1728117413387,8.5,144.53,144.49,6.1837]
[1728117413587,8.5,144.52,144.49,6.1837]
[1728117413983,8.5,144.52,144.5,3.4599]
[1728117414189,8.5,144.52,144.49,6.1837]
[1728117414890,8.5,144.52,144.49,9.6437]
[1728117415086,8.5,144.5,144.47,4.96502]
[1728117415294,8.5,144.49,144.47,0.12502]
[1728117416697,3.4599,144.51,144.47,0.12502]
[1728117416698,8.5,144.51,144.47,0.12502]
[1728117417198,8.5,144.51,144.48,3.4604]
[1728117418104,8.5,144.51,144.49,3.4602]
[1728117418896,8.5,144.5,144.49,3.4602]
[1728117419091,7.22550104,144.75,144.47,13.46502]
[1728117419291,8.5,144.53,144.51,3.4597]
[1728117420300,8.5,144.53,144.49,3.4601]
[1728117420598,8.5,144.53,144.48,9.9144]
[1728117420999,8.5,144.53,144.51,3.4596]
[1728117423105,8.5,144.53,144.48,9.9144]
[1728117423106,8.2987,144.56,144.48,9.9144]
[1728117423295,8.5,144.54,144.48,9.9144]
[1728117423502,8.5,144.54,144.49,1.3771]
[1728117423701,8.5,144.54,144.5,4.84]
[1728117424003,8.5,144.54,144.53,3.4593]
[1728117427099,8.5,144.54,144.5,4.84]
[1728117427297,8.5,144.52,144.5,4.84]
[1728117428011,8.5,144.52,144.51,3.4597]
[1728117428200,3.44802545,144.55,144.5,4.84]
[1728117428398,8.5,144.53,144.5,4.84]
[1728117429403,4.84,144.6,144.51,9.67568202]
[1728117429615,8.5,144.57,144.52,1.17568202]
[1728117429811,8.5,144.57,144.53,4.84]
[1728117430212,8.5,144.57,144.56,3.4585]
[1728117432511,0.12502,144.59,144.57,3.4582]
[1728117432814,8.62502,144.59,144.57,3.4582]
[1728117433015,8.62502,144.59,144.58,3.4581]
[1728117436513,8.62502,144.59,144.57,3.4583]
[1728117436704,8.5,144.58,144.57,3.4583]
[1728117438817,8.5,144.58,144.56,8.2985]
[1728117439115,8.5,144.57,144.56,8.2985]
[1728117442917,8.5,144.58,144.56,8.2985]
[1728117443118,8.5,144.58,144.57,3.4583]
[1728117450425,8.5,144.58,144.57,4.1096]
[1728117452124,8.62502,144.59,144.58,3.4581]
[1728117454938,8.62502,144.59,144.57,0.6513]
[1728117455238,8.5,144.58,144.57,0.6513]
[1728117455839,3.58312,144.59,144.57,0.6513]
[1728117456034,8.5,144.58,144.57,0.6513]
[1728117459244,11.9581,144.58,144.57,0.6513]
[1728117463345,3.4586,144.56,144.53,3.4592]
[1728117463547,8.5,144.55,144.53,3.4592]
[1728117464952,8.5,144.55,144.54,3.459]
[1728117466753,8.5,144.55,144.53,3.4592]
[1728117467848,8.5,144.55,144.52,8.2994]
[1728117468249,8.5,144.55,144.52,3.4594]
[1728117468449,8.5,144.55,144.51,4.84]
[1728117470055,8.5,144.55,144.53,3.4592]
[1728117471852,8.5,144.55,144.52,4.84]
[1728117472049,8.5,144.53,144.51,4.84]
[1728117472554,8.5,144.53,144.52,3.4595]
[1728117483468,8.5,144.53,144.5,8.2999]
[1728117483768,8.5,144.52,144.5,8.2999]
[1728117484162,8.5,144.52,144.49,95.67897708]
[1728117484363,8.5,144.51,144.49,99.13907708]
[1728117487964,3.4587,144.56,144.49,95.67897708]
[1728117488159,8.5,144.54,144.49,104.17897708]
[1728117488659,8.5,144.54,144.52,3.4593]
[1728117488971,8.5,144.54,144.51,4.84]
[1728117489464,8.5,144.54,144.52,3.4595]
[1728117489866,4.0535,144.58,144.51,13.34]
[1728117490169,8.5,144.56,144.54,3.4589]
[1728117492168,0.12502,144.59,144.54,13.34]
[1728117492364,0.12502,144.59,144.57,8.5]
[1728117492672,0.12502,144.59,144.58,13.34]
[1728117494167,0.12502,144.59,144.58,16.7981]
[1728117496565,0.12502,144.59,144.58,8.2981]
[1728117500877,0.12502,144.59,144.58,16.7981]
[1728117501067,0.12502,144.65,144.61,8.5]
[1728117501268,0.12502,144.65,144.62,4.82]
[1728117501473,0.12502,144.65,144.63,3.4567]
[1728117506785,0.12502,144.65,144.64,3.4566]
[1728117507265,8.62502,144.65,144.62,4.82]
[1728117507870,8.62502,144.65,144.63,3.4569]
[1728117508671,8.62502,144.65,144.6,8.5]
[1728117508867,8.62502,144.65,144.62,3.457]
[1728117509475,8.5,144.64,144.58,0.6513]
[1728117509680,8.5,144.62,144.58,9.1513]
[1728117509878,8.5,144.62,144.59,4.82]
[1728117510181,0.12502,144.65,144.58,0.6513]
[1728117510182,8.5,144.6,144.58,0.6513]
[1728117510374,8.5,144.59,144.58,0.6513]
[1728117511377,11.9578,144.59,144.58,0.6513]
[1728117511678,8.5,144.59,144.54,4.82]
[1728117511881,3.459,144.54,144.53,0.12502]
[1728117512175,11.959,144.54,144.53,0.12502]
[1728117512883,8.5,144.54,144.53,0.12502]
[1728117513977,8.5,144.55,144.53,0.12502]
[1728117516482,8.5,144.54,144.53,0.12502]
[1728117526390,11.959,144.54,144.53,0.12502]
[1728117531189,8.5,144.54,144.47,0.12502]
[1728117531392,8.5,144.49,144.47,0.12502]
[1728117531588,1.4282,144.53,144.47,0.12502]
[1728117531788,8.5,144.48,144.47,0.12502]
[1728117532692,11.9605,144.48,144.47,0.12502]
[1728117533287,11.9605,144.48,144.4,26.71417941]
[1728117533288,13.32,144.48,144.35,0.12502]
[1728117533486,8.5,144.37,144.35,0.12502]
[1728117535097,11.9631,144.37,144.35,0.12502]
[1728117535497,16.7631,144.37,144.35,0.12502]
[1728117537393,13.3,144.37,144.22,27.95304754]
[1728117537599,13.3,144.34,144.29,4.96502]
[1728117538292,13.3,144.34,144.29,0.12502]
[1728117538600,16.764,144.34,144.29,0.12502]
[1728117538795,18.14,144.36,144.29,0.12502]
[1728117539000,21.6034,144.36,144.32,3.4642]
[1728117539195,21.6034,144.36,144.29,0.12502]
[1728117539196,4.84,144.36,144.29,0.12502]
[1728117539610,4.84,144.36,144.32,3.4642]
[1728117540893,3.4636,144.35,144.31,8.3045]
[1728117541088,18.14,144.36,144.29,0.12502]
[1728117541089,13.3,144.33,144.29,0.12502]
[1728117541488,16.7643,144.33,144.29,0.12502]
[1728117541690,13.3,144.33,144.29,0.12502]
[1728117542400,13.3,144.33,144.29,3.59002]
[1728117543303,13.3,144.33,144.29,0.12502]
[1728117544192,3.4643,144.32,144.29,0.12502]
[1728117544396,13.3,144.31,144.29,0.12502]
[1728117544797,3.4648,144.3,144.29,0.12502]
[1728117546001,3.4655,144.28,144.24,11.0578]
[1728117546199,13.3,144.27,144.24,11.0578]
[1728117546601,13.3,144.27,144.24,8.4061]
[1728117546802,13.3,144.26,144.23,0.12502]
[1728117547102,13.3,144.28,144.23,0.12502]
[1728117548007,16.7653,144.28,144.24,3.466]
[1728117549104,13.3,144.26,144.23,0.12502]
[1728117549307,13.3,144.24,144.23,0.12502]
[1728117549606,13.3,144.24,144.2,3.467]
[1728117549806,16.7664,144.24,144.19,3.4674]
[1728117550102,16.7664,144.24,144.18,1.3316]
[1728117550309,13.3,144.24,144.21,3.4669]
[1728117551113,13.3,144.24,144.18,6.2716]
[1728117551305,16.7663,144.24,144.2,3.4671]
[1728117552106,13.3,144.24,144.18,6.2716]
[1728117552305,13.3,144.24,144.22,3.4667]
[1728117552506,13.3,144.25,144.21,4.94]
[1728117553406,13.3,144.27,144.21,4.94]
[1728117553906,13.3,144.27,144.23,3.4663]
[1728117554112,13.3,144.27,144.21,4.94]
[1728117554612,13.3,144.25,144.22,3.4665]
[1728117555115,13.3,144.23,144.19,3.4673]
[1728117555304,13.3,144.23,144.18,1.3316]
[1728117555913,13.3,144.23,144.21,3.4669]
[1728117556306,13.3,144.25,144.2,4.94]
[1728117556612,13.3,144.27,144.2,4.94]
[1728117557112,13.3,144.27,144.24,3.466]
[1728117557299,13.3,144.27,144.24,8.406]
[1728117561518,13.42502,144.29,144.27,3.4654]
[1728117561713,13.42502,144.29,144.24,4.94]
[1728117562114,16.89022,144.29,144.25,3.466]
[1728117563516,16.89022,144.29,144.26,3.4657]
[1728117563917,13.42502,144.29,144.26,3.4657]
[1728117566808,0.12502,144.29,144.28,3.4653]
[1728117567022,13.42502,144.29,144.25,1.3235]
[1728117569013,13.42502,144.29,144.26,3.4657]
[1728117569520,13.42502,144.29,144.25,1.3235]
[1728117569714,13.42502,144.29,144.27,3.4655]
[1728117570117,13.42502,144.29,144.26,3.4657]
[1728117570316,0.12502,144.29,144.27,4.94]
[1728117570819,0.12502,144.29,144.28,3.4653]
[1728117571123,0.12502,144.29,144.27,4.94]
[1728117571422,0.12502,144.29,144.27,8.4053]
[1728117574322,0.12502,144.29,144.27,4.94]
[1728117574521,0.12502,144.29,144.28,3.4653]
[1728117577314,0.12502,144.29,144.27,4.94]
[1728117577315,0.12502,144.29,144.27,8.4054]
[1728117578822,0.12502,144.29,144.27,4.94]
[1728117579016,0.12502,144.29,144.28,3.4653]
[1728117579722,0.12502,144.29,144.27,4.94]
[1728117580521,0.12502,144.29,144.27,8.4055]
[1728117581928,13.42502,144.29,144.25,1.3235]
[1728117582426,13.42502,144.29,144.25,6.3435]
[1728117583032,13.42502,144.29,144.26,3.4656]
[1728117583231,13.42502,144.29,144.26,8.4856]
[1728117583434,13.42502,144.29,144.26,3.4656]
[1728117583625,13.42502,144.29,144.26,8.4856]
[1728117584229,16.89012,144.29,144.26,5.02]
[1728117584432,13.42502,144.29,144.26,5.02]
[1728117584930,13.42502,144.29,144.26,8.4857]
[1728117589336,13.42502,144.29,144.27,3.4655]
[1728117592736,13.42502,144.29,144.26,8.4857]
[1728117593535,0.12502,144.29,144.27,3.4654]
[1728117593735,8.51,144.28,144.27,3.4654]
[1728117596928,0.12502,144.29,144.28,3.4653]
[1728117598037,8.63502,144.29,144.28,3.4653]
[1728117600939,8.63502,144.29,144.27,3.4654]
[1728117601236,8.51,144.28,144.27,3.4654]
[1728117602840,8.51,144.28,144.26,5.02]
[1728117602841,8.63502,144.29,144.28,3.4653]
[1728117604137,0.12502,144.29,144.28,3.4653]
[1728117606638,8.51,144.32,144.31,3.4645]
[1728117608649,8.51,144.32,144.3,4.98]
[1728117608852,8.51,144.32,144.3,8.4447]
[1728117609453,8.51,144.31,144.3,8.4447]
[1728117615057,3.4648,144.3,144.27,0.6513]
[1728117615262,3.43538159,144.32,144.27,0.6513]
[1728117615263,8.51,144.28,144.27,5.6313]
[1728117616565,8.51,144.28,144.27,9.0968]
[1728117617370,8.51,144.28,144.27,5.6313]
[1728117618370,3.5157171,144.33,144.27,5.6313]
[1728117618572,8.51,144.28,144.27,5.6313]
[1728117620274,3.38621406,144.32,144.27,5.6313]
[1728117620475,8.51,144.29,144.27,5.6313]
[1728117621180,8.51,144.29,144.27,9.0968]
[1728117621666,8.51,144.28,144.27,5.6313]
[1728117622971,8.51,144.28,144.27,4.98]
[1728117623168,11.9753,144.28,144.25,1.3235]
[1728117623368,8.51,144.26,144.23,0.12502]
[1728117623668,8.51,144.25,144.23,5.10502]
[1728117623869,8.51,144.25,144.23,8.57142]
[1728117624071,8.51,144.25,144.23,5.10502]
[1728117625374,8.51,144.25,144.23,0.12502]
[1728117625579,11.9761,144.25,144.23,0.12502]
[1728117626274,8.51,144.25,144.23,0.12502]
[1728117628073,8.51,144.25,144.23,3.59152]
[1728117628977,3.4652,144.29,144.25,3.466]
[1728117629275,8.51,144.27,144.25,3.466]
[1728117629672,8.51,144.27,144.24,4.98]
[1728117629981,1.64,144.34,144.24,13.49]
[1728117629982,8.51,144.28,144.24,13.49]
[1728117630185,8.51,144.28,144.25,1.3305]
[1728117631079,8.51,144.28,144.27,3.4654]
[1728117632590,8.51,144.28,144.26,3.4657]
[1728117633184,8.51,144.27,144.26,3.4657]
[1728117636996,8.51,144.29,144.25,1.3305]
[1728117637183,8.51,144.29,144.28,3.4653]
[1728117639082,8.51,144.29,144.25,1.3305]
[1728117639279,8.51,144.29,144.27,3.4654]
[1728117640890,8.51,144.29,144.28,3.4653]
[1728117641997,8.51,144.3,144.29,3.465]
[1728117642377,0.2607,144.4,144.26,13.47]
[1728117642378,8.51,144.31,144.26,13.47]
[1728117642985,3.4636,144.36,144.28,8.51]
[1728117643183,8.51,144.33,144.29,4.96]
[1728117643780,8.51,144.33,144.31,3.4645]
[1728117647303,8.51,144.32,144.31,3.4645]
[1728117650194,8.51,144.33,144.31,3.4645]
[1728117658305,8.51,144.32,144.3,4.96]
[1728117659606,8.51,144.32,144.3,8.4248]
[1728117659808,3.4642,144.33,144.3,4.96]
[1728117659809,8.51,144.33,144.3,4.96]
[1728117660503,8.51,144.33,144.31,3.4644]
[1728117661409,8.51,144.33,144.31,4.1157]
[1728117666011,8.51,144.32,144.31,0.6513]
[1728117669519,11.9743,144.32,144.31,0.6513]
[1728117671022,8.51,144.32,144.31,0.6513]
[1728117676734,8.51,144.32,144.3,3.4647]
[1728117681124,3.54712741,144.31,144.25,1.3305]
[1728117681324,8.51,144.3,144.26,4.9]
[1728117681927,8.51,144.3,144.27,3.4654]
[1728117682735,11.9748,144.3,144.27,3.4654]
[1728117685433,11.9748,144.3,144.23,8.63502]
[1728117685434,8.51,144.28,144.23,0.12502]
[1728117685624,8.51,144.24,144.23,0.12502]
[1728117692626,3.4656,144.27,144.23,3.59152]
[1728117692831,8.51,144.26,144.23,0.12502]
[1728117693538,8.51,144.26,144.24,3.4661]
[1728117693834,8.51,144.26,144.23,0.12502]
[1728117694039,8.51,144.26,144.24,3.466]
[1728117694536,8.51,144.26,144.23,0.12502]
[1728117694742,8.51,144.26,144.25,3.466]
[1728117699839,3.4649,144.3,144.26,3.4655]
[1728117700036,8.51,144.28,144.26,3.4655]
[1728117702134,8.51,144.28,144.27,3.4655]
[1728117702534,8.51,144.28,144.24,16.0621]
[1728117703035,8.51,144.28,144.26,3.4656]
[1728117704839,8.51,144.28,144.27,3.4655]
[1728117708345,8.51,144.28,144.25,3.4659]
[1728117708549,8.51,144.27,144.25,3.4659]
[1728117709048,8.51,144.27,144.26,3.4657]
[1728117712148,8.51,144.28,144.26,3.4657]
[1728117712450,3.4643,144.32,144.28,3.4651]
[1728117712645,8.51,144.3,144.28,3.4651]
[1728117713342,8.51,144.3,144.29,3.465]
[1728117716752,3.4643,144.32,144.29,3.465]
[1728117716949,8.51,144.31,144.29,3.465]
[1728117720356,8.51,144.3,144.29,3.465]
[1728117720550,11.9748,144.3,144.27,8.9967]
[1728117720750,8.51,144.28,144.27,0.6513]
[1728117721153,11.9753,144.28,144.27,0.6513]
[1728117722651,3.4657,144.27,144.23,0.12502]
[1728117722954,8.51,144.25,144.23,3.59142]
[1728117723955,8.51,144.25,144.23,0.12502]
[1728117724461,3.4658,144.26,144.23,0.12502]
[1728117724754,4.88,144.29,144.23,0.12502]
[1728117725161,3.4659,144.26,144.23,0.12502]
[1728117729862,3.4655,144.27,144.23,3.59132]
[1728117730171,3.4655,144.27,144.23,0.12502]
[1728117731265,3.4655,144.27,144.24,3.4662]
[1728117731466,3.4655,144.27,144.23,0.12502]
[1728117731667,3.4655,144.27,144.23,3.59122]
[1728117732168,4.88,144.29,144.23,0.12502]
[1728117732364,3.4661,144.25,144.23,0.12502]
[1728117739374,4.84,144.28,144.23,0.12502]
[1728117739575,3.4659,144.26,144.23,0.12502]
[1728117743679,4.84,144.28,144.23,0.12502]
[1728117743979,3.466,144.25,144.23,0.12502]
[1728117747382,3.4662,144.24,144.23,0.12502]
[1728117748374,4.84,144.25,144.19,3.4673]
[1728117748681,3.4669,144.22,144.19,3.4673]
[1728117749379,4.84,144.24,144.16,7.5893]
[1728117749677,3.4673,144.2,144.16,7.5893]
[1728117750175,4.84,144.24,144.16,7.5893]
[1728117750477,3.467,144.21,144.17,3.59282]
[1728117752069,3.4673,144.2,144.17,3.59282]
[1728117752276,4.84,144.24,144.17,3.59272]
[1728117752772,3.4669,144.21,144.18,3.4676]
[1728117753977,4.84,144.24,144.17,0.12502]
[1728117754174,3.4672,144.2,144.17,3.59282]
[1728117754876,3.4677,144.18,144.17,0.12502]
[1728117755183,4.86,144.21,144.17,0.12502]
[1728117756176,3.4673,144.2,144.17,3.59292]
[1728117760082,4.86,144.21,144.17,0.12502]
[1728117761679,3.4677,144.18,144.17,0.12502]
[1728117761983,11.83365829,144.18,144.17,0.12502]
[1728117762182,8.3277,144.18,144.17,0.12502]
[1728117762683,11.79934392,144.18,144.17,0.12502]
[1728117762877,3.4689,144.13,144.11,0.12502]
[1728117763080,4.86,144.15,144.11,0.12502]
[1728117763487,3.4689,144.13,144.11,0.12502]
[1728117765980,4.86,144.15,144.11,0.12502]
[1728117766584,3.4687,144.14,144.11,0.12502]
[1728117766788,4.86,144.15,144.11,0.12502]
[1728117767186,3.469,144.13,144.11,0.12502]
[1728117767692,3.4682,144.16,144.11,0.12502]
[1728117767886,4.86,144.15,144.11,0.12502]
[1728117768790,4.86,144.15,144.12,3.4691]
[1728117769384,8.3282,144.16,144.12,3.4691]
[1728117770682,4.86,144.16,144.12,3.4691]
[1728117770882,3.4685,144.15,144.12,3.4691]
[1728117771991,3.4687,144.14,144.11,3.59422]
[1728117775289,4.86,144.14,144.11,0.12502]
[1728117775993,3.469,144.13,144.11,0.12502]
[1728117776392,4.86,144.14,144.11,0.12502]
[1728117776593,8.3287,144.14,144.11,0.12502]
[1728117776994,8.3287,144.14,144.11,3.59422]
[1728117777492,4.86,144.14,144.11,3.59422]
[1728117777898,4.86,144.14,144.11,0.12502]